[Event "*** Titled Tuesday 3|2 Blitz"]
[Site "Chess.com"]
[Date "2017.05.02"]
[Round "1"]
[White "Boryboy"]
[Black "Rikikits"]
[Result "0-1"]
[WhiteElo "2302"]
[BlackElo "2573"]
[TimeControl "180+2"]
[EndTime "13:08:11 PDT"]
[Termination "Rikikits won by checkmate"]

1. d4 {[%clk 0:03:00.8]} 1... Nf6 {[%clk 0:03:00.9]} 2. Nf3 {[%clk 0:03:01.6]}
2... e6 {[%clk 0:03:02.1]} 3. g3 {[%clk 0:03:02.2]} 3... b5 {[%clk 0:03:02.1]}
4. Bg2 {[%clk 0:03:02.8]} 4... Bb7 {[%clk 0:03:03.7]} 5. O-O {[%clk 0:03:02.2]}
5... Be7 {[%clk 0:03:05]} 6. a4 {[%clk 0:03:01.6]} 6... b4 {[%clk 0:03:06.1]} 7.
c4 {[%clk 0:03:02.2]} 7... O-O {[%clk 0:03:06]} 8. Qc2 {[%clk 0:03:01.5]} 8...
Na6 {[%clk 0:03:04.4]} 9. b3 {[%clk 0:03:00.8]} 9... d6 {[%clk 0:03:00]} 10. Bb2
{[%clk 0:02:47]} 10... Be4 {[%clk 0:02:54.9]} 11. Qc1 {[%clk 0:02:44.2]} 11...
c5 {[%clk 0:02:54.2]} 12. Nbd2 {[%clk 0:02:44]} 12... Bg6 {[%clk 0:02:54.6]} 13.
Rd1 {[%clk 0:02:34.7]} 13... Qc7 {[%clk 0:02:54]} 14. Nh4 {[%clk 0:02:23.5]}
14... Rad8 {[%clk 0:02:54.5]} 15. Nxg6 {[%clk 0:02:24.4]} 15... hxg6 {[%clk
0:02:56.4]} 16. Qc2 {[%clk 0:02:24.6]} 16... cxd4 {[%clk 0:02:45.9]} 17. Bxd4
{[%clk 0:02:25.4]} 17... Nc5 {[%clk 0:02:47.8]} 18. Ne4 {[%clk 0:02:25.3]} 18...
Nfxe4 {[%clk 0:02:47.8]} 19. Bxe4 {[%clk 0:02:25.8]} 19... Bf6 {[%clk
0:02:48.2]} 20. Bf3 {[%clk 0:02:23.6]} 20... a5 {[%clk 0:02:29.3]} 21. Kg2
{[%clk 0:02:22.4]} 21... Rfe8 {[%clk 0:02:19.9]} 22. e3 {[%clk 0:02:21.7]} 22...
Rd7 {[%clk 0:02:00.5]} 23. h4 {[%clk 0:02:21.7]} 23... Red8 {[%clk 0:02:00]} 24.
h5 {[%clk 0:02:14.8]} 24... gxh5 {[%clk 0:01:58.3]} 25. Rh1 {[%clk 0:02:15.3]}
25... e5 {[%clk 0:01:56.7]} 26. Bxc5 {[%clk 0:02:15.4]} 26... dxc5 {[%clk
0:01:58.1]} 27. Bd5 {[%clk 0:02:14.7]} 27... Rxd5 {[%clk 0:01:48.7]} 28. cxd5
{[%clk 0:02:15.7]} 28... g6 {[%clk 0:01:50.3]} 29. e4 {[%clk 0:02:15]} 29... Be7
{[%clk 0:01:45.1]} 30. Qc4 {[%clk 0:02:14.4]} 30... Bd6 {[%clk 0:01:46.1]} 31.
Rad1 {[%clk 0:02:15.2]} 31... Kg7 {[%clk 0:01:46.6]} 32. Rd3 {[%clk 0:02:16.3]}
32... Rb8 {[%clk 0:01:42.9]} 33. Rf3 {[%clk 0:02:17]} 33... Rb6 {[%clk
0:01:43.9]} 34. Rh4 {[%clk 0:02:15.1]} 34... Be7 {[%clk 0:01:42]} 35. d6 {[%clk
0:02:16.3]} 35... Bxd6 {[%clk 0:01:42.7]} 36. g4 {[%clk 0:02:14.3]} 36... Qe7
{[%clk 0:01:23.1]} 37. Rfh3 {[%clk 0:02:15.1]} 37... Qg5 {[%clk 0:01:19.5]} 38.
Kf1 {[%clk 0:02:14.1]} 38... Be7 {[%clk 0:01:12.6]} 39. gxh5 {[%clk 0:02:14.5]}
39... Rd6 {[%clk 0:01:13.3]} 40. h6+ {[%clk 0:01:54]} 40... Kh8 {[%clk
0:01:13.9]} 41. f4 {[%clk 0:00:47.4]} 41... Rd1+ {[%clk 0:01:05.7]} 42. Ke2
{[%clk 0:00:47.9]} 42... Qg1 {[%clk 0:01:06.6]} 43. Rh1 {[%clk 0:00:19.2]} 43...
Re1+ {[%clk 0:01:06.6]} 44. Kd2 {[%clk 0:00:20.6]} 44... Qf2+ {[%clk 0:01:04]}
45. Kd3 {[%clk 0:00:18.6]} 45... Re3# {[%clk 0:01:04.4]} 0-1

[Event "*** Titled Tuesday 3|2 Blitz"]
[Site "Chess.com"]
[Date "2017.05.02"]
[Round "1"]
[White "Ez_Chess2016"]
[Black "chessdude"]
[Result "0-1"]
[WhiteElo "1975"]
[BlackElo "2423"]
[TimeControl "180+2"]
[EndTime "13:08:15 PDT"]
[Termination "chessdude won by resignation"]

1. e4 {[%clk 0:02:59.2]} 1... c5 {[%clk 0:03:00.3]} 2. Nf3 {[%clk 0:02:59.5]}
2... d6 {[%clk 0:03:01.1]} 3. Bb5+ {[%clk 0:03:00]} 3... Nd7 {[%clk 0:03:01.6]}
4. O-O {[%clk 0:02:59.5]} 4... a6 {[%clk 0:03:02.7]} 5. Bd3 {[%clk 0:02:56.6]}
5... Ngf6 {[%clk 0:03:03.7]} 6. Re1 {[%clk 0:02:56.5]} 6... e6 {[%clk
0:03:04.7]} 7. c3 {[%clk 0:02:53.1]} 7... b5 {[%clk 0:03:05.5]} 8. a4 {[%clk
0:02:52.8]} 8... Bb7 {[%clk 0:03:05.6]} 9. Bc2 {[%clk 0:02:42.1]} 9... c4 {[%clk
0:03:06.6]} 10. axb5 {[%clk 0:01:55.8]} 10... axb5 {[%clk 0:03:08.5]} 11. Na3
{[%clk 0:01:56.8]} 11... Nc5 {[%clk 0:02:46.3]} 12. Nd4 {[%clk 0:01:45]} 12...
Bxe4 {[%clk 0:02:36]} 13. Bxe4 {[%clk 0:01:38.1]} 13... Nfxe4 {[%clk 0:02:33.8]}
14. Ndxb5 {[%clk 0:01:37.5]} 14... Be7 {[%clk 0:02:29.6]} 15. b4 {[%clk
0:01:30.4]} 15... cxb3 {[%clk 0:02:09.5]} 16. d4 {[%clk 0:01:29.3]} 16... O-O
{[%clk 0:01:46.4]} 17. dxc5 {[%clk 0:01:27.2]} 17... Nxc5 {[%clk 0:01:48.3]} 18.
Be3 {[%clk 0:01:23.7]} 18... d5 {[%clk 0:01:48.7]} 19. Bxc5 {[%clk 0:01:19.7]}
19... Bxc5 {[%clk 0:01:50.6]} 20. Qxb3 {[%clk 0:01:20.3]} 20... Qb6 {[%clk
0:01:51.2]} 21. Qc2 {[%clk 0:01:10.2]} 21... Rfb8 {[%clk 0:01:47]} 22. h3 {[%clk
0:00:54.3]} 22... Ra5 {[%clk 0:01:40.3]} 23. Reb1 {[%clk 0:00:18.9]} 23... Rba8
{[%clk 0:01:40.8]} 24. Kh1 {[%clk 0:00:12.7]} 24... Qd8 {[%clk 0:01:35.4]} 25.
Rb3 {[%clk 0:00:10.5]} 25... g6 {[%clk 0:01:25.5]} 26. c4 {[%clk 0:00:11.4]}
26... d4 {[%clk 0:01:23]} 27. Qd3 {[%clk 0:00:08.3]} 27... Qe7 {[%clk
0:01:22.4]} 28. Ra2 {[%clk 0:00:07.2]} 28... e5 {[%clk 0:01:23.3]} 29. f3 {[%clk
0:00:08.2]} 29... f5 {[%clk 0:01:24.4]} 30. Kh2 {[%clk 0:00:07.9]} 30... e4
{[%clk 0:01:25.6]} 31. fxe4 {[%clk 0:00:08.6]} 31... fxe4 {[%clk 0:01:27.5]} 32.
Qg3 {[%clk 0:00:05.9]} 32... Rxb5 {[%clk 0:00:50.9]} 33. cxb5 {[%clk 0:00:04.2]}
33... Bd6 {[%clk 0:00:50.3]} 34. Qxd6 {[%clk 0:00:03.3]} 34... Qxd6+ {[%clk
0:00:52.2]} 35. Rg3 {[%clk 0:00:04.9]} 35... e3 {[%clk 0:00:48.8]} 36. Nc4
{[%clk 0:00:05.1]} 36... Qb8 {[%clk 0:00:47.6]} 37. Rxa8 {[%clk 0:00:05.7]}
37... Qxa8 {[%clk 0:00:49.5]} 38. b6 {[%clk 0:00:07.1]} 38... Qb8 {[%clk
0:00:49.9]} 39. h4 {[%clk 0:00:06.9]} 39... e2 {[%clk 0:00:49.8]} 0-1

[Event "*** Titled Tuesday 3|2 Blitz"]
[Site "Chess.com"]
[Date "2017.05.02"]
[Round "1"]
[White "scrapnel"]
[Black "the_drake"]
[Result "1-0"]
[WhiteElo "2504"]
[BlackElo "2201"]
[TimeControl "180+2"]
[EndTime "13:08:26 PDT"]
[Termination "scrapnel won by resignation"]

1. d4 {[%clk 0:03:02]} 1... d5 {[%clk 0:03:00.6]} 2. Nf3 {[%clk 0:03:02.7]} 2...
Nf6 {[%clk 0:03:00.7]} 3. c4 {[%clk 0:03:03.5]} 3... c6 {[%clk 0:03:01.5]} 4.
Qc2 {[%clk 0:03:01.3]} 4... g6 {[%clk 0:03:01.8]} 5. Bf4 {[%clk 0:03:01.2]} 5...
Bg7 {[%clk 0:03:02.4]} 6. e3 {[%clk 0:03:02.4]} 6... Bf5 {[%clk 0:03:03.2]} 7.
Qb3 {[%clk 0:03:02.5]} 7... Qb6 {[%clk 0:02:49.2]} 8. Nc3 {[%clk 0:03:01.3]}
8... Qxb3 {[%clk 0:02:33.9]} 9. axb3 {[%clk 0:03:01.6]} 9... a6 {[%clk 0:02:35]}
10. b4 {[%clk 0:02:53.4]} 10... Nbd7 {[%clk 0:02:31.6]} 11. b5 {[%clk
0:02:47.9]} 11... dxc4 {[%clk 0:02:16.6]} 12. bxc6 {[%clk 0:02:44.2]} 12... bxc6
{[%clk 0:02:17]} 13. Bxc4 {[%clk 0:02:44.9]} 13... a5 {[%clk 0:02:12.4]} 14. Kd2
{[%clk 0:02:30.7]} 14... Nb6 {[%clk 0:02:10.4]} 15. Bd3 {[%clk 0:02:26.9]} 15...
Bxd3 {[%clk 0:02:10.7]} 16. Kxd3 {[%clk 0:02:28]} 16... Nfd5 {[%clk 0:02:09.3]}
17. Bg3 {[%clk 0:02:22.7]} 17... Kd7 {[%clk 0:02:06.9]} 18. Ne4 {[%clk
0:02:19.5]} 18... Nb4+ {[%clk 0:02:00.1]} 19. Ke2 {[%clk 0:02:19.7]} 19... Rhc8
{[%clk 0:01:46]} 20. Rhc1 {[%clk 0:02:18.7]} 20... e6 {[%clk 0:01:43.4]} 21. Be5
{[%clk 0:02:14.3]} 21... Bf8 {[%clk 0:01:25]} 22. Nf6+ {[%clk 0:02:14.4]} 22...
Ke7 {[%clk 0:01:21.5]} 23. Nxh7 {[%clk 0:02:14.9]} 23... N6d5 {[%clk 0:01:21.2]}
24. e4 {[%clk 0:02:11.8]} 24... f6 {[%clk 0:01:11.9]} 25. exd5 {[%clk
0:02:03.1]} 25... fxe5 {[%clk 0:01:12.2]} 26. Nxf8 {[%clk 0:01:52.4]} 26... Rxf8
{[%clk 0:01:06.6]} 27. Nxe5 {[%clk 0:01:51.5]} 27... Kd6 {[%clk 0:00:44.1]} 28.
dxc6 {[%clk 0:01:41.8]} 28... Rf4 {[%clk 0:00:45.3]} 29. c7 {[%clk 0:01:34.7]}
29... Rc8 {[%clk 0:00:44.1]} 30. Rxa5 {[%clk 0:01:33.2]} 30... Rxd4 {[%clk
0:00:39.2]} 31. Rc4 {[%clk 0:01:22.4]} 31... Rd5 {[%clk 0:00:28.2]} 32. Rxd5+
{[%clk 0:01:04.9]} 32... Nxd5 {[%clk 0:00:26.4]} 33. Nxg6 {[%clk 0:01:04.5]}
33... Nxc7 {[%clk 0:00:26.6]} 34. h4 {[%clk 0:01:01.9]} 34... Rb8 {[%clk
0:00:26.2]} 35. Rc2 {[%clk 0:00:57.9]} 35... Nb5 {[%clk 0:00:24.6]} 36. Rd2+
{[%clk 0:00:57.8]} 36... Kc5 {[%clk 0:00:22.9]} 37. Ke3 {[%clk 0:00:56.4]} 37...
Nc7 {[%clk 0:00:18.5]} 38. Kf4 {[%clk 0:00:46.6]} 38... Nd5+ {[%clk 0:00:19.2]}
39. Kg5 {[%clk 0:00:45.1]} 39... Rg8 {[%clk 0:00:20.2]} 40. h5 {[%clk
0:00:45.9]} 40... e5 {[%clk 0:00:21.4]} 41. g3 {[%clk 0:00:46.2]} 41... Kd6
{[%clk 0:00:21.2]} 42. Rxd5+ {[%clk 0:00:42.2]} 42... Kxd5 {[%clk 0:00:22.4]}
43. h6 {[%clk 0:00:43.2]} 43... Ke6 {[%clk 0:00:23.8]} 44. h7 {[%clk 0:00:44.2]}
44... Rb8 {[%clk 0:00:24.9]} 45. h8=Q {[%clk 0:00:44.1]} 45... Rxh8 {[%clk
0:00:26.4]} 46. Nxh8 {[%clk 0:00:45.2]} 1-0

[Event "*** Titled Tuesday 3|2 Blitz"]
[Site "Chess.com"]
[Date "2017.05.02"]
[Round "1"]
[White "chessking2151"]
[Black "spectralsoul"]
[Result "0-1"]
[WhiteElo "2347"]
[BlackElo "2655"]
[TimeControl "180+2"]
[EndTime "13:08:30 PDT"]
[Termination "spectralsoul won by resignation"]

1. e4 {[%clk 0:03:00.9]} 1... d6 {[%clk 0:02:59.9]} 2. d4 {[%clk 0:02:59.8]}
2... Nf6 {[%clk 0:03:01.3]} 3. Nc3 {[%clk 0:02:57.8]} 3... g6 {[%clk 0:03:02.8]}
4. f4 {[%clk 0:02:58]} 4... Bg7 {[%clk 0:03:03.2]} 5. Nf3 {[%clk 0:02:58]} 5...
O-O {[%clk 0:03:00.2]} 6. Be3 {[%clk 0:02:43.9]} 6... c6 {[%clk 0:02:26.4]} 7.
Qd2 {[%clk 0:02:43.5]} 7... b5 {[%clk 0:02:26.9]} 8. Bd3 {[%clk 0:02:41.3]} 8...
Ng4 {[%clk 0:02:22.8]} 9. Bg1 {[%clk 0:02:39.4]} 9... e5 {[%clk 0:02:24.1]} 10.
Ne2 {[%clk 0:02:36.3]} 10... exd4 {[%clk 0:02:22.8]} 11. Nexd4 {[%clk
0:02:35.5]} 11... Re8 {[%clk 0:02:20.9]} 12. O-O-O {[%clk 0:02:31.1]} 12... a6
{[%clk 0:02:15.8]} 13. h3 {[%clk 0:02:08.3]} 13... Nh6 {[%clk 0:02:03.2]} 14. c3
{[%clk 0:01:59.3]} 14... c5 {[%clk 0:02:03]} 15. Nc2 {[%clk 0:02:00.3]} 15...
Bb7 {[%clk 0:01:47.7]} 16. e5 {[%clk 0:01:44.8]} 16... Bxf3 {[%clk 0:01:31.1]}
17. gxf3 {[%clk 0:01:41.7]} 17... dxe5 {[%clk 0:01:32.5]} 18. fxe5 {[%clk
0:01:30.8]} 18... Qc8 {[%clk 0:01:23.3]} 19. Be4 {[%clk 0:01:26.5]} 19... Ra7
{[%clk 0:01:24]} 20. f4 {[%clk 0:01:27.5]} 20... Rd7 {[%clk 0:01:23.6]} 21. Qe2
{[%clk 0:01:28.4]} 21... Rxd1+ {[%clk 0:01:18]} 22. Qxd1 {[%clk 0:01:30.3]}
22... f6 {[%clk 0:01:16.4]} 23. Bd5+ {[%clk 0:01:24.1]} 23... Kh8 {[%clk
0:01:16.4]} 24. e6 {[%clk 0:01:25.4]} 24... Nf5 {[%clk 0:01:04.7]} 25. Ne3
{[%clk 0:01:21.4]} 25... Ne7 {[%clk 0:01:01.1]} 26. c4 {[%clk 0:01:12.3]} 26...
f5 {[%clk 0:00:54.7]} 27. Bf2 {[%clk 0:01:03]} 27... Nbc6 {[%clk 0:00:55]} 28.
Bh4 {[%clk 0:00:50.8]} 28... Qc7 {[%clk 0:00:47.3]} 29. Bxc6 {[%clk 0:00:39.7]}
29... Nxc6 {[%clk 0:00:46.8]} 30. Nd5 {[%clk 0:00:40.2]} 30... Qd6 {[%clk
0:00:42.4]} 31. e7 {[%clk 0:00:37.6]} 31... bxc4 {[%clk 0:00:43.2]} 32. Re1
{[%clk 0:00:26.5]} 32... Nd4 {[%clk 0:00:40.2]} 33. Ne3 {[%clk 0:00:17.5]} 33...
Qxf4 {[%clk 0:00:38.9]} 34. Qa4 {[%clk 0:00:15.9]} 34... Nb5 {[%clk 0:00:28.1]}
35. Qxc4 {[%clk 0:00:14.9]} 35... Qb8 {[%clk 0:00:21.8]} 36. Nd5 {[%clk
0:00:14.7]} 36... Nd6 {[%clk 0:00:21.7]} 37. Qc2 {[%clk 0:00:14.5]} 37... Ne4
{[%clk 0:00:22.9]} 38. Nc3 {[%clk 0:00:11.9]} 38... Qf4+ {[%clk 0:00:22.7]} 39.
Kb1 {[%clk 0:00:12.9]} 39... Nxc3+ {[%clk 0:00:21.9]} 40. bxc3 {[%clk
0:00:13.5]} 40... Qxh4 {[%clk 0:00:23.4]} 41. Qb3 {[%clk 0:00:14.4]} 41... Qxe1+
{[%clk 0:00:24.2]} 0-1

[Event "*** Titled Tuesday 3|2 Blitz"]
[Site "Chess.com"]
[Date "2017.05.02"]
[Round "1"]
[White "sergiochess83"]
[Black "SerGo055"]
[Result "0-1"]
[WhiteElo "2659"]
[BlackElo "2377"]
[TimeControl "180+2"]
[EndTime "13:08:37 PDT"]
[Termination "SerGo055 won by checkmate"]

1. e4 {[%clk 0:03:02]} 1... d5 {[%clk 0:02:58.1]} 2. exd5 {[%clk 0:03:02.6]}
2... Nf6 {[%clk 0:02:58.6]} 3. d4 {[%clk 0:02:59.1]} 3... Qxd5 {[%clk
0:02:58.9]} 4. Nf3 {[%clk 0:02:57.2]} 4... Bg4 {[%clk 0:02:59.1]} 5. Be2 {[%clk
0:02:58]} 5... Nc6 {[%clk 0:03:00.6]} 6. h3 {[%clk 0:02:57.1]} 6... Bh5 {[%clk
0:02:47.1]} 7. Nc3 {[%clk 0:02:57.5]} 7... Qd6 {[%clk 0:02:38.6]} 8. Nb5 {[%clk
0:02:04.6]} 8... Qd7 {[%clk 0:02:33.3]} 9. d5 {[%clk 0:02:05.3]} 9... Bxf3
{[%clk 0:02:24]} 10. Bxf3 {[%clk 0:02:00.3]} 10... Ne5 {[%clk 0:02:21.9]} 11.
Be2 {[%clk 0:01:53.8]} 11... a6 {[%clk 0:02:19.3]} 12. Nc3 {[%clk 0:01:48.3]}
12... Rd8 {[%clk 0:02:19.7]} 13. Bf4 {[%clk 0:01:39.4]} 13... Ng6 {[%clk
0:02:19.7]} 14. Bg3 {[%clk 0:01:39.5]} 14... Nxd5 {[%clk 0:02:19.6]} 15. Nxd5
{[%clk 0:01:37]} 15... Qxd5 {[%clk 0:02:20.6]} 16. Bxc7 {[%clk 0:01:33.9]} 16...
Qxd1+ {[%clk 0:01:57.4]} 17. Rxd1 {[%clk 0:01:34.6]} 17... Rc8 {[%clk
0:01:56.6]} 18. Bb6 {[%clk 0:01:13]} 18... e6 {[%clk 0:01:57.4]} 19. c4 {[%clk
0:01:06.2]} 19... Bb4+ {[%clk 0:01:56.4]} 20. Kf1 {[%clk 0:01:07.2]} 20... Bc5
{[%clk 0:01:57.5]} 21. Bxc5 {[%clk 0:01:06.3]} 21... Rxc5 {[%clk 0:01:57.9]} 22.
b4 {[%clk 0:01:07.9]} 22... Rc7 {[%clk 0:01:51.6]} 23. g3 {[%clk 0:01:01.4]}
23... Ke7 {[%clk 0:01:50.2]} 24. Kg2 {[%clk 0:01:02.6]} 24... Ne5 {[%clk
0:01:51.1]} 25. c5 {[%clk 0:01:02.4]} 25... a5 {[%clk 0:01:52.5]} 26. a3 {[%clk
0:01:02.5]} 26... axb4 {[%clk 0:01:53]} 27. axb4 {[%clk 0:01:04.4]} 27... Ra8
{[%clk 0:01:47.7]} 28. Ra1 {[%clk 0:01:01.9]} 28... Rd8 {[%clk 0:01:38.2]} 29.
Rhd1 {[%clk 0:00:59.2]} 29... Rxd1 {[%clk 0:01:26.7]} 30. Bxd1 {[%clk
0:00:49.2]} 30... Nc6 {[%clk 0:01:14.2]} 31. Ra4 {[%clk 0:00:47.7]} 31... Nd4
{[%clk 0:01:12.4]} 32. Bf3 {[%clk 0:00:41]} 32... Nxf3 {[%clk 0:00:59.4]} 33.
Kxf3 {[%clk 0:00:41.9]} 33... Kd7 {[%clk 0:01:01]} 34. Ke4 {[%clk 0:00:26.7]}
34... Kc6 {[%clk 0:01:02.2]} 35. Ra5 {[%clk 0:00:21.3]} 35... Rd7 {[%clk
0:01:02.4]} 36. Ra8 {[%clk 0:00:16.7]} 36... f6 {[%clk 0:00:48.5]} 37. g4 {[%clk
0:00:16.9]} 37... e5 {[%clk 0:00:49.3]} 38. Kf5 {[%clk 0:00:13.6]} 38... Rd4
{[%clk 0:00:44.6]} 39. Rc8+ {[%clk 0:00:12.1]} 39... Kd7 {[%clk 0:00:45.1]} 40.
Rg8 {[%clk 0:00:13.1]} 40... Rf4# {[%clk 0:00:44.7]} 0-1

[Event "*** Titled Tuesday 3|2 Blitz"]
[Site "Chess.com"]
[Date "2017.05.02"]
[Round "1"]
[White "djogrodek1"]
[Black "Larax"]
[Result "1-0"]
[WhiteElo "2414"]
[BlackElo "1970"]
[TimeControl "180+2"]
[EndTime "13:08:40 PDT"]
[Termination "djogrodek1 won by checkmate"]

1. e4 {[%clk 0:02:59.8]} 1... e5 {[%clk 0:02:59]} 2. Nf3 {[%clk 0:02:52.4]} 2...
Nc6 {[%clk 0:02:56]} 3. Bc4 {[%clk 0:02:50.4]} 3... Bc5 {[%clk 0:02:56.9]} 4.
O-O {[%clk 0:02:42.3]} 4... Nf6 {[%clk 0:02:54.1]} 5. d3 {[%clk 0:02:43.1]} 5...
d6 {[%clk 0:02:49.2]} 6. c3 {[%clk 0:02:38.8]} 6... O-O {[%clk 0:02:42.4]} 7.
Nbd2 {[%clk 0:02:38.6]} 7... a6 {[%clk 0:02:40.9]} 8. Bb3 {[%clk 0:02:38.5]}
8... Ba7 {[%clk 0:02:34.3]} 9. h3 {[%clk 0:02:37.9]} 9... Re8 {[%clk 0:02:31.5]}
10. Re1 {[%clk 0:02:37.3]} 10... Be6 {[%clk 0:02:32.3]} 11. Bc2 {[%clk
0:02:36.4]} 11... h6 {[%clk 0:02:31.2]} 12. Nf1 {[%clk 0:02:36.8]} 12... d5
{[%clk 0:02:25.9]} 13. Qe2 {[%clk 0:02:33.1]} 13... b5 {[%clk 0:02:09.9]} 14.
Ng3 {[%clk 0:02:33.8]} 14... dxe4 {[%clk 0:02:10.1]} 15. dxe4 {[%clk 0:02:33]}
15... Bc4 {[%clk 0:02:10.9]} 16. Qd1 {[%clk 0:02:29.8]} 16... Qxd1 {[%clk
0:02:11.8]} 17. Rxd1 {[%clk 0:02:31.7]} 17... Rad8 {[%clk 0:02:12.5]} 18. Be3
{[%clk 0:02:13.4]} 18... Bxe3 {[%clk 0:02:08.3]} 19. fxe3 {[%clk 0:02:15.3]}
19... g6 {[%clk 0:02:00.8]} 20. Kf2 {[%clk 0:02:07.4]} 20... Nd7 {[%clk
0:01:46.5]} 21. Nd2 {[%clk 0:02:06.3]} 21... Be6 {[%clk 0:01:45.8]} 22. Nb3
{[%clk 0:01:49.6]} 22... a5 {[%clk 0:01:28.3]} 23. a4 {[%clk 0:01:48.2]} 23...
b4 {[%clk 0:01:24.1]} 24. Nf1 {[%clk 0:01:43.4]} 24... Bxb3 {[%clk 0:01:23.2]}
25. Bxb3 {[%clk 0:01:44.4]} 25... Nc5 {[%clk 0:01:24.5]} 26. Bd5 {[%clk
0:01:40.1]} 26... Ne7 {[%clk 0:01:20.6]} 27. cxb4 {[%clk 0:01:40]} 27... axb4
{[%clk 0:01:21.2]} 28. Kf3 {[%clk 0:01:18.6]} 28... Nxd5 {[%clk 0:01:16.4]} 29.
exd5 {[%clk 0:01:20.5]} 29... e4+ {[%clk 0:01:17.2]} 30. Ke2 {[%clk 0:01:20.1]}
30... Nd3 {[%clk 0:01:17.3]} 31. Nd2 {[%clk 0:00:59.8]} 31... Nxb2 {[%clk
0:01:03.3]} 32. Rdb1 {[%clk 0:01:00.7]} 32... Nd3 {[%clk 0:01:02]} 33. Nxe4
{[%clk 0:01:00.7]} 33... Rxe4 {[%clk 0:01:02.7]} 34. Kxd3 {[%clk 0:01:02]} 34...
Re5 {[%clk 0:01:03.6]} 35. Kc4 {[%clk 0:00:57.4]} 35... Rxe3 {[%clk 0:00:58.9]}
36. a5 {[%clk 0:00:58.4]} 36... b3 {[%clk 0:00:48.6]} 37. a6 {[%clk 0:00:55.4]}
37... Kf8 {[%clk 0:00:45.3]} 38. a7 {[%clk 0:00:54.9]} 38... Ra8 {[%clk
0:00:46.9]} 39. Rxb3 {[%clk 0:00:51.1]} 39... Rxb3 {[%clk 0:00:47.4]} 40. Kxb3
{[%clk 0:00:53]} 40... Ke7 {[%clk 0:00:48.8]} 41. Kc4 {[%clk 0:00:54.6]} 41...
Kd6 {[%clk 0:00:49.9]} 42. Ra6+ {[%clk 0:00:56.2]} 42... Kd7 {[%clk 0:00:50]}
43. Kc5 {[%clk 0:00:57.8]} 43... Kc8 {[%clk 0:00:47.9]} 44. Kc6 {[%clk
0:00:58.7]} 44... f5 {[%clk 0:00:47.9]} 45. h4 {[%clk 0:00:53.2]} 45... g5
{[%clk 0:00:46.4]} 46. h5 {[%clk 0:00:54.7]} 46... f4 {[%clk 0:00:46.9]} 47. Ra4
{[%clk 0:00:55.5]} 47... f3 {[%clk 0:00:15.3]} 48. gxf3 {[%clk 0:00:57.4]} 48...
Rxa7 {[%clk 0:00:13.1]} 49. Rxa7 {[%clk 0:00:57.7]} 49... Kb8 {[%clk 0:00:14.1]}
50. Rb7+ {[%clk 0:00:59]} 50... Kc8 {[%clk 0:00:15]} 51. Rxc7+ {[%clk
0:01:00.9]} 51... Kd8 {[%clk 0:00:17]} 52. Rh7 {[%clk 0:01:01]} 52... g4 {[%clk
0:00:18.7]} 53. fxg4 {[%clk 0:01:02.1]} 53... Kc8 {[%clk 0:00:19.1]} 54. d6
{[%clk 0:01:04]} 54... Kd8 {[%clk 0:00:20.8]} 55. Rh8# {[%clk 0:01:05.4]} 1-0

[Event "*** Titled Tuesday 3|2 Blitz"]
[Site "Chess.com"]
[Date "2017.05.02"]
[Round "1"]
[White "Mbneu"]
[Black "Cryptochess"]
[Result "0-1"]
[WhiteElo "2151"]
[BlackElo "2470"]
[TimeControl "180+2"]
[EndTime "13:08:42 PDT"]
[Termination "Cryptochess won by resignation"]

1. d4 {[%clk 0:03:02]} 1... Nf6 {[%clk 0:02:57.5]} 2. c4 {[%clk 0:03:02.2]} 2...
e6 {[%clk 0:02:58.2]} 3. Nc3 {[%clk 0:03:02.6]} 3... Bb4 {[%clk 0:02:58.8]} 4.
Bg5 {[%clk 0:03:03.9]} 4... h6 {[%clk 0:02:54.7]} 5. Bh4 {[%clk 0:03:03.5]} 5...
c5 {[%clk 0:02:53.9]} 6. dxc5 {[%clk 0:03:03.7]} 6... Nc6 {[%clk 0:02:42.3]} 7.
Rc1 {[%clk 0:03:02.6]} 7... Bxc5 {[%clk 0:02:34.3]} 8. Nf3 {[%clk 0:03:01.1]}
8... O-O {[%clk 0:02:33.2]} 9. e3 {[%clk 0:03:00.3]} 9... Be7 {[%clk 0:02:26.4]}
10. Be2 {[%clk 0:02:57.4]} 10... b6 {[%clk 0:02:21.6]} 11. O-O {[%clk
0:02:57.2]} 11... Bb7 {[%clk 0:02:22.9]} 12. Nb5 {[%clk 0:02:51]} 12... d5
{[%clk 0:02:16.9]} 13. cxd5 {[%clk 0:02:51]} 13... Nxd5 {[%clk 0:02:17.2]} 14.
Bg3 {[%clk 0:02:45.2]} 14... a6 {[%clk 0:02:16.2]} 15. Nbd4 {[%clk 0:02:45]}
15... Nxd4 {[%clk 0:02:09.9]} 16. Nxd4 {[%clk 0:02:45]} 16... Bf6 {[%clk
0:02:07.4]} 17. Bf3 {[%clk 0:02:45.2]} 17... Rc8 {[%clk 0:02:04.6]} 18. Qb3
{[%clk 0:02:40.6]} 18... b5 {[%clk 0:02:00]} 19. a4 {[%clk 0:02:39.1]} 19... Qb6
{[%clk 0:01:49.7]} 20. axb5 {[%clk 0:02:30.1]} 20... Bxd4 {[%clk 0:01:48.8]} 21.
exd4 {[%clk 0:02:28.7]} 21... axb5 {[%clk 0:01:49]} 22. Rfd1 {[%clk 0:02:17.1]}
22... b4 {[%clk 0:01:47.9]} 23. h3 {[%clk 0:02:09.8]} 23... Rxc1 {[%clk
0:01:45.5]} 24. Rxc1 {[%clk 0:02:10.1]} 24... Qxd4 {[%clk 0:01:45.8]} 25. Bd6
{[%clk 0:01:59.5]} 25... Rd8 {[%clk 0:01:41.5]} 26. Bxb4 {[%clk 0:01:54.1]}
26... Nxb4 {[%clk 0:01:24]} 27. Bxb7 {[%clk 0:01:53.2]} 27... Nd3 {[%clk
0:01:25.5]} 28. Rf1 {[%clk 0:01:51]} 28... Nc5 {[%clk 0:01:24.6]} 29. Qb6 {[%clk
0:01:47.2]} 29... Rb8 {[%clk 0:01:23.3]} 30. b4 {[%clk 0:01:47.1]} 30... Nb3
{[%clk 0:01:12.2]} 31. Qxd4 {[%clk 0:01:40.3]} 31... Nxd4 {[%clk 0:01:14.1]} 32.
Rd1 {[%clk 0:01:40.3]} 32... e5 {[%clk 0:01:13.5]} 33. Bd5 {[%clk 0:01:25.6]}
33... Rb5 {[%clk 0:01:11.7]} 34. Be4 {[%clk 0:01:03.7]} 34... Rxb4 {[%clk
0:01:10.3]} 35. Bd5 {[%clk 0:01:03.7]} 35... Rb5 {[%clk 0:01:08.4]} 36. Bc4
{[%clk 0:01:03.2]} 36... Rc5 {[%clk 0:01:08.2]} 37. Bf1 {[%clk 0:01:00.9]} 37...
g6 {[%clk 0:01:09.3]} 38. Ra1 {[%clk 0:01:00.4]} 38... Kg7 {[%clk 0:01:09.7]}
39. Bd3 {[%clk 0:00:59.9]} 39... Rc3 {[%clk 0:01:08.5]} 40. Be4 {[%clk
0:00:58.3]} 40... Ne2+ {[%clk 0:01:04.5]} 41. Kf1 {[%clk 0:00:57]} 41... Nf4
{[%clk 0:01:05.6]} 42. h4 {[%clk 0:00:49.5]} 42... Rc4 {[%clk 0:01:01]} 43. Bf3
{[%clk 0:00:49.7]} 43... e4 {[%clk 0:01:01]} 44. Bd1 {[%clk 0:00:46.7]} 44...
Rb4 {[%clk 0:01:01.9]} 45. g3 {[%clk 0:00:46.9]} 45... Nd3 {[%clk 0:01:01.5]}
46. Be2 {[%clk 0:00:47.3]} 46... Ne5 {[%clk 0:01:02.6]} 47. Ra5 {[%clk
0:00:46.1]} 47... Kf6 {[%clk 0:01:01.2]} 48. Ra6+ {[%clk 0:00:45.4]} 48... Ke7
{[%clk 0:01:02.3]} 49. Ra7+ {[%clk 0:00:45.7]} 49... Kd6 {[%clk 0:01:03.2]} 50.
Ra6+ {[%clk 0:00:46.6]} 50... Kc5 {[%clk 0:01:04.1]} 51. Ra5+ {[%clk 0:00:47]}
51... Kd4 {[%clk 0:01:05.3]} 52. Kg2 {[%clk 0:00:44]} 52... Rb2 {[%clk
0:01:05.5]} 53. Ra4+ {[%clk 0:00:40.1]} 53... Kd5 {[%clk 0:01:06.5]} 54. Ra5+
{[%clk 0:00:39.9]} 54... Ke6 {[%clk 0:01:07.5]} 55. Ra6+ {[%clk 0:00:40.7]}
55... Kf5 {[%clk 0:01:08.3]} 56. Bd1 {[%clk 0:00:36]} 56... Nd3 {[%clk
0:01:06.4]} 57. g4+ {[%clk 0:00:35.9]} 57... Ke5 {[%clk 0:01:05.7]} 58. Ra5+
{[%clk 0:00:35.9]} 58... Kf4 {[%clk 0:01:06.4]} 0-1